[Event "The Schackveckan 2023: Göteborg open"]
[Site "Göteborgs schackcentrum, Vegagatan 20, Gothenburg, Sweden"]
[Date "2023.08.12"]
[Round "6.7"]
[White "Granath, Andreas"]
[Black "Wesslen, Ulf"]
[Result "0-1"]
[TimeControl "15 minutes + 5 seconds per move from move one (Round 1 - 4) / 90 minutes + 30 seconds per move from move one (Round 5 - 8)"]
[WhiteFideId "1743333"]
[BlackFideId "1705199"]
[WhiteElo "1673"]
[BlackElo "1916"]

1. d4 {[%clk 01:30:58]} {[%emt 00:00:02]} Nf6 {[%clk 01:30:38]} {[%emt
00:00:22]} 2. c4 {[%clk 01:31:24]} {[%emt 00:00:05]} c5 {[%clk 01:30:43]}
{[%emt 00:00:25]} 3. d5 {[%clk 01:31:48]} {[%emt 00:00:06]} b5 {[%clk
01:30:35]} {[%emt 00:00:38]} 4. cxb5 {[%clk 01:32:13]} {[%emt 00:00:05]} a6
{[%clk 01:30:55]} {[%emt 00:00:09]} 5. bxa6 {[%clk 01:32:39]} {[%emt 00:00:05]}
g6 {[%clk 01:29:53]} {[%emt 00:01:31]} 6. Nc3 {[%clk 01:33:03]} {[%emt
00:00:06]} Bxa6 {[%clk 01:29:56]} {[%emt 00:00:27]} 7. e4 {[%clk 01:33:26]}
{[%emt 00:00:07]} Bxf1 {[%clk 01:30:11]} {[%emt 00:00:14]} 8. Kxf1 {[%clk
01:33:52]} {[%emt 00:00:04]} d6 {[%clk 01:30:09]} {[%emt 00:00:33]} 9. g3
{[%clk 01:34:17]} {[%emt 00:00:05]} Bg7 {[%clk 01:29:55]} {[%emt 00:00:44]} 10.
Nf3 {[%clk 01:34:36]} {[%emt 00:00:09]} O-O {[%clk 01:27:34]} {[%emt 00:02:53]}
11. Kg2 {[%clk 01:34:57]} {[%emt 00:00:09]} Nbd7 {[%clk 01:24:19]} {[%emt
00:03:44]} 12. h3 {[%clk 01:33:09]} {[%emt 00:02:20]} Qa5 {[%clk 01:21:39]}
{[%emt 00:03:09]} 13. a4 {[%clk 01:32:00]} {[%emt 00:01:40]} Rfb8 {[%clk
01:20:36]} {[%emt 00:01:32]} 14. Ra3 {[%clk 01:31:13]} {[%emt 00:01:18]} Nb6
{[%clk 01:15:37]} {[%emt 00:05:28]} 15. Qe2 {[%clk 01:30:22]} {[%emt 00:01:19]}
Nfd7 {[%clk 01:14:30]} {[%emt 00:01:40]} 16. Bd2 {[%clk 01:30:04]} {[%emt
00:00:46]} Qb4 {[%clk 01:08:18]} {[%emt 00:06:42]} 17. Rb1 {[%clk 01:27:02]}
{[%emt 00:03:33]} Qc4 {[%clk 01:02:45]} {[%emt 00:06:03]} 18. Qe1 {[%clk
01:23:48]} {[%emt 00:03:45]} Qa6 {[%clk 00:59:14]} {[%emt 00:04:00]} 19. b3
{[%clk 01:23:28]} {[%emt 00:00:50]} Nc8 {[%clk 00:51:54]} {[%emt 00:07:50]} 20.
Qe2 {[%clk 01:13:24]} {[%emt 00:10:34]} Qb7 {[%clk 00:46:28]} {[%emt 00:05:54]}
21. Nb5 {[%clk 01:04:45]} {[%emt 00:09:12]} Na7 {[%clk 00:45:14]} {[%emt
00:01:43]} 22. Nxa7 {[%clk 01:04:48]} {[%emt 00:00:27]} Rxa7 {[%clk 00:44:17]}
{[%emt 00:01:27]} 23. b4 {[%clk 01:04:58]} {[%emt 00:00:20]} Qa8 {[%clk
00:32:03]} {[%emt 00:12:43]} 24. b5 {[%clk 01:04:51]} {[%emt 00:00:38]} Rxa4
{[%clk 00:31:19]} {[%emt 00:01:14]} 25. Rxa4 {[%clk 01:00:34]} {[%emt
00:04:48]} Qxa4 {[%clk 00:31:36]} {[%emt 00:00:12]} 26. Qd3 {[%clk 01:00:51]}
{[%emt 00:00:12]} Nb6 {[%clk 00:24:57]} {[%emt 00:07:09]} 27. Qe2 {[%clk
00:56:03]} {[%emt 00:05:18]} Qa2 {[%clk 00:22:26]} {[%emt 00:03:01]} 28. Qd1
{[%clk 00:53:58]} {[%emt 00:02:35]} c4 {[%clk 00:18:54]} {[%emt 00:04:03]} 29.
Be3 {[%clk 00:53:50]} {[%emt 00:00:37]} Na4 {[%clk 00:15:55]} {[%emt 00:03:29]}
30. Bd4 {[%clk 00:52:24]} {[%emt 00:01:57]} Bxd4 {[%clk 00:13:37]} {[%emt
00:02:47]} 31. Nxd4 {[%clk 00:52:38]} {[%emt 00:00:16]} Nc3 {[%clk 00:11:52]}
{[%emt 00:02:16]} 32. Ra1 {[%clk 00:52:44]} {[%emt 00:00:25]} Qb2 {[%clk
00:08:38]} {[%emt 00:03:43]} 33. Qc1 {[%clk 00:51:51]} {[%emt 00:01:23]} Qxc1
{[%clk 00:08:21]} {[%emt 00:00:47]} 34. Rxc1 {[%clk 00:52:13]} {[%emt
00:00:08]} Nxe4 {[%clk 00:08:19]} {[%emt 00:00:32]} 35. Rxc4 {[%clk 00:52:18]}
{[%emt 00:00:25]} Rb7 {[%clk 00:07:20]} {[%emt 00:01:29]} 36. Rb4 {[%clk
00:50:41]} {[%emt 00:02:06]} Nf6 {[%clk 00:07:14]} {[%emt 00:00:36]} 37. Rb2
{[%clk 00:50:03]} {[%emt 00:01:09]} Nxd5 {[%clk 00:07:07]} {[%emt 00:00:37]} 38.
Nc6 {[%clk 00:49:49]} {[%emt 00:00:43]} Kf8 {[%clk 00:07:05]} {[%emt 00:00:32]}
39. Na5 {[%clk 00:49:28]} {[%emt 00:00:52]} Rb8 {[%clk 00:06:06]} {[%emt
00:01:30]} 40. Nc6 {[%clk 00:49:46]} {[%emt 00:00:12]} Rb6 {[%clk 00:06:13]}
{[%emt 00:00:22]} 41. Nd4 {[%clk 00:48:18]} {[%emt 00:01:57]} Ke8 {[%clk
00:05:28]} {[%emt 00:01:16]} 42. g4 {[%clk 00:46:31]} {[%emt 00:02:18]} Kd7
{[%clk 00:04:45]} {[%emt 00:01:13]} 43. Kf3 {[%clk 00:45:11]} {[%emt 00:01:49]}
Nc7 {[%clk 00:04:36]} {[%emt 00:00:40]} 44. Rd2 {[%clk 00:36:59]} {[%emt
00:08:41]} Nxb5 {[%clk 00:04:31]} {[%emt 00:00:34]} 45. Ke3 {[%clk 00:36:59]}
{[%emt 00:00:27]} Nxd4 {[%clk 00:04:30]} {[%emt 00:00:35]} 46. Kxd4 {[%clk
00:37:19]} {[%emt 00:00:10]} Rb3 {[%clk 00:04:12]} {[%emt 00:00:48]} 0-1

[Event "The Schackveckan 2023: Göteborg open"]
[Site "Göteborgs schackcentrum, Vegagatan 20, Gothenburg, Sweden"]
[Date "2023.08.12"]
[Round "6.8"]
[White "Westlund, Tim"]
[Black "Buzleta, Patrik"]
[Result "1-0"]
[TimeControl "15 minutes + 5 seconds per move from move one (Round 1 - 4) / 90 minutes + 30 seconds per move from move one (Round 5 - 8)"]
[WhiteFideId "1754718"]
[BlackFideId "1755463"]
[WhiteElo "1861"]
[BlackElo "1604"]

1. e4 {[%clk 01:30:59]} e6 {[%clk 01:30:40]} {[%emt 00:00:20]} 2. d4 {[%clk
01:31:23]} {[%emt 00:00:06]} d6 {[%clk 01:30:57]} {[%emt 00:00:14]} 3. Nf3
{[%clk 01:29:45]} {[%emt 00:02:06]} h6 {[%clk 01:30:46]} {[%emt 00:00:42]} 4.
Bd3 {[%clk 01:29:12]} {[%emt 00:01:03]} a6 {[%clk 01:30:45]} {[%emt 00:00:31]}
5. O-O {[%clk 01:28:01]} {[%emt 00:01:41]} g6 {[%clk 01:30:58]} {[%emt
00:00:18]} 6. c4 {[%clk 01:27:24]} {[%emt 00:01:06]} Bg7 {[%clk 01:31:08]}
{[%emt 00:00:20]} 7. Nc3 {[%clk 01:24:36]} {[%emt 00:03:18]} Nd7 {[%clk
01:31:05]} {[%emt 00:00:33]} 8. Re1 {[%clk 01:20:28]} {[%emt 00:04:38]} Qe7
{[%clk 01:29:17]} {[%emt 00:02:18]} 9. e5 {[%clk 01:20:45]} {[%emt 00:00:13]}
dxe5 {[%clk 01:29:09]} {[%emt 00:00:38]} 10. dxe5 {[%clk 01:20:35]} {[%emt
00:00:39]} g5 {[%clk 01:29:08]} {[%emt 00:00:32]} 11. h3 {[%clk 01:19:04]}
{[%emt 00:02:03]} Qd8 {[%clk 01:26:19]} {[%emt 00:03:18]} 12. a3 {[%clk
01:17:14]} {[%emt 00:02:20]} Ne7 {[%clk 01:26:19]} {[%emt 00:00:29]} 13. b4
{[%clk 01:17:08]} {[%emt 00:00:36]} Nc6 {[%clk 01:20:38]} {[%emt 00:06:11]} 14.
Bb2 {[%clk 01:10:32]} {[%emt 00:07:06]} O-O {[%clk 01:06:27]} {[%emt 00:14:41]}
15. Nb1 {[%clk 01:04:49]} {[%emt 00:06:12]} f5 {[%clk 01:02:19]} {[%emt
00:04:39]} 16. exf6 {[%clk 01:03:16]} {[%emt 00:02:03]} Nxf6 {[%clk 01:02:26]}
{[%emt 00:00:24]} 17. Qc2 {[%clk 01:02:52]} {[%emt 00:00:53]} Qe7 {[%clk
01:00:55]} {[%emt 00:02:01]} 18. Nbd2 {[%clk 01:02:16]} {[%emt 00:01:05]} g4
{[%clk 01:00:14]} {[%emt 00:01:12]} 19. hxg4 {[%clk 01:00:05]} {[%emt
00:02:40]} Nxg4 {[%clk 00:59:43]} {[%emt 00:01:03]} 20. Be4 {[%clk 00:57:40]}
{[%emt 00:02:54]} e5 {[%clk 00:59:05]} {[%emt 00:01:08]} 21. Bd5+ {[%clk
00:56:51]} {[%emt 00:01:19]} Kh8 {[%clk 00:57:36]} {[%emt 00:01:59]} 22. Nf1
{[%clk 00:48:43]} {[%emt 00:08:37]} Bf5 {[%clk 00:54:39]} {[%emt 00:03:28]} 23.
Be4 {[%clk 00:47:16]} {[%emt 00:01:57]} Bxe4 {[%clk 00:54:45]} {[%emt
00:00:24]} 24. Qxe4 {[%clk 00:47:21]} {[%emt 00:00:24]} Rf4 {[%clk 00:54:42]}
{[%emt 00:00:33]} 25. Qg6 {[%clk 00:45:07]} {[%emt 00:02:43]} Raf8 {[%clk
00:54:06]} {[%emt 00:01:08]} 26. Ng3 {[%clk 00:43:20]} {[%emt 00:02:16]} R8f6
{[%clk 00:52:39]} {[%emt 00:01:58]} 27. Qd3 {[%clk 00:42:08]} {[%emt 00:01:40]}
Qf7 {[%clk 00:50:58]} {[%emt 00:02:13]} 28. Qd5 {[%clk 00:34:05]} {[%emt
00:08:32]} Qf8 {[%clk 00:47:40]} {[%emt 00:03:46]} 29. Nh5 {[%clk 00:32:08]}
{[%emt 00:02:29]} Rd6 {[%clk 00:46:52]} {[%emt 00:01:18]} 30. Nxf4 {[%clk
00:32:09]} {[%emt 00:00:30]} Qxf4 {[%clk 00:46:38]} {[%emt 00:00:44]} 31. Qe4
{[%clk 00:31:24]} {[%emt 00:01:15]} Qf7 {[%clk 00:42:46]} {[%emt 00:04:21]} 32.
Qxg4 {[%clk 00:31:02]} {[%emt 00:00:51]} Rg6 {[%clk 00:42:51]} {[%emt
00:00:26]} 33. Qc8+ {[%clk 00:30:39]} {[%emt 00:00:53]} Kh7 {[%clk 00:43:00]}
{[%emt 00:00:21]} 34. Qh3 {[%clk 00:30:46]} {[%emt 00:00:23]} e4 {[%clk
00:42:32]} {[%emt 00:00:58]} 35. Bxg7 {[%clk 00:29:12]} {[%emt 00:02:05]} exf3
{[%clk 00:39:45]} {[%emt 00:03:18]} 36. g3 {[%clk 00:28:53]} {[%emt 00:00:48]}
Qxg7 {[%clk 00:38:38]} {[%emt 00:01:37]} 37. Rad1 {[%clk 00:24:54]} {[%emt
00:04:28]} Rg4 {[%clk 00:35:23]} {[%emt 00:03:46]} 38. Re6 {[%clk 00:22:46]}
{[%emt 00:02:38]} Nd4 {[%clk 00:31:11]} {[%emt 00:04:42]} 39. Rxd4 {[%clk
00:20:16]} {[%emt 00:03:00]} Rxd4 {[%clk 00:30:51]} {[%emt 00:00:51]} 40. Qf5+
{[%clk 00:20:36]} {[%emt 00:00:08]} 1-0

[Event "The Schackveckan 2023: Göteborg open"]
[Site "Göteborgs schackcentrum, Vegagatan 20, Gothenburg, Sweden"]
[Date "2023.08.12"]
[Round "6.9"]
[White "Andersson, Stig"]
[Black "Johansson, William"]
[Result "0-1"]
[TimeControl "15 minutes + 5 seconds per move from move one (Round 1 - 4) / 90 minutes + 30 seconds per move from move one (Round 5 - 8)"]
[WhiteFideId "1731971"]
[BlackFideId "1744070"]
[WhiteElo "1811"]
[BlackElo "2052"]

1. e4 {[%clk 01:30:56]} {[%emt 00:00:04]} c6 {[%clk 01:30:55]} {[%emt
00:00:06]} 2. d4 {[%clk 01:30:44]} {[%emt 00:00:41]} d5 {[%clk 01:31:17]}
{[%emt 00:00:08]} 3. e5 {[%clk 01:30:19]} {[%emt 00:00:54]} Bf5 {[%clk
01:31:42]} {[%emt 00:00:05]} 4. Nf3 {[%clk 01:26:28]} {[%emt 00:04:21]} e6
{[%clk 01:32:03]} {[%emt 00:00:10]} 5. Be2 {[%clk 01:26:37]} {[%emt 00:00:19]}
c5 {[%clk 01:31:13]} {[%emt 00:01:22]} 6. O-O {[%clk 01:26:29]} {[%emt
00:00:39]} Nc6 {[%clk 01:31:21]} {[%emt 00:00:22]} 7. c3 {[%clk 01:25:22]}
{[%emt 00:01:35]} Nge7 {[%clk 01:27:04]} {[%emt 00:04:47]} 8. Bg5 {[%clk
01:24:02]} {[%emt 00:01:50]} Qb6 {[%clk 01:25:43]} {[%emt 00:01:52]} 9. Na3
{[%clk 01:19:58]} {[%emt 00:04:31]} a6 {[%clk 01:16:51]} {[%emt 00:09:25]} 10.
Qa4 {[%clk 01:14:09]} {[%emt 00:06:19]} Rc8 {[%clk 01:11:38]} {[%emt 00:05:44]}
11. dxc5 {[%clk 01:11:49]} {[%emt 00:02:49]} Qxb2 {[%clk 01:08:00]} {[%emt
00:04:08]} 12. Rfe1 {[%clk 01:06:53]} {[%emt 00:05:25]} h6 {[%clk 01:01:04]}
{[%emt 00:07:27]} 13. Be3 {[%clk 01:05:15]} {[%emt 00:02:06]} g5 {[%clk
00:59:07]} {[%emt 00:02:28]} 14. Nd4 {[%clk 00:58:16]} {[%emt 00:07:29]} Bg7
{[%clk 00:55:38]} {[%emt 00:03:59]} 15. Rad1 {[%clk 00:51:21]} {[%emt
00:07:24]} O-O {[%clk 00:48:51]} {[%emt 00:07:18]} 16. Nac2 {[%clk 00:44:23]}
{[%emt 00:07:27]} Qxc3 {[%clk 00:43:47]} {[%emt 00:05:34]} 17. Bd3 {[%clk
00:40:30]} {[%emt 00:04:24]} Bxd3 {[%clk 00:40:47]} {[%emt 00:03:31]} 18. Rxd3
{[%clk 00:40:02]} {[%emt 00:00:58]} Qxd3 {[%clk 00:40:39]} {[%emt 00:00:37]}
0-1

[Event "The Schackveckan 2023: Göteborg open"]
[Site "Göteborgs schackcentrum, Vegagatan 20, Gothenburg, Sweden"]
[Date "2023.08.12"]
[Round "6.10"]
[White "Lindholm, Marcus"]
[Black "Harila, Per"]
[Result "0-1"]
[TimeControl "15 minutes + 5 seconds per move from move one (Round 1 - 4) / 90 minutes + 30 seconds per move from move one (Round 5 - 8)"]
[WhiteFideId "1743473"]
[BlackFideId "1707248"]
[WhiteElo "1708"]
[BlackElo "2016"]

1. d4 {[%clk 01:30:57]} {[%emt 00:00:03]} e6 {[%clk 01:30:38]} {[%emt
00:00:23]} 2. c4 {[%clk 01:31:16]} {[%emt 00:00:10]} f5 {[%clk 01:31:02]}
{[%emt 00:00:06]} 3. g3 {[%clk 01:30:59]} {[%emt 00:00:47]} Nf6 {[%clk
01:31:29]} {[%emt 00:00:04]} 4. Nc3 {[%clk 01:31:18]} {[%emt 00:00:10]} d5
{[%clk 01:31:46]} {[%emt 00:00:13]} 5. Bg2 {[%clk 01:30:46]} {[%emt 00:01:02]}
c6 {[%clk 01:32:14]} {[%emt 00:00:02]} 6. cxd5 {[%clk 01:30:09]} {[%emt
00:01:07]} exd5 {[%clk 01:32:27]} {[%emt 00:00:17]} 7. Nf3 {[%clk 01:29:50]}
{[%emt 00:00:49]} Bd6 {[%clk 01:32:53]} {[%emt 00:00:05]} 8. Ne5 {[%clk
01:29:12]} {[%emt 00:01:07]} O-O {[%clk 01:32:48]} {[%emt 00:00:35]} 9. e3
{[%clk 01:28:02]} {[%emt 00:01:40]} Ne4 {[%clk 01:32:50]} {[%emt 00:00:27]} 10.
O-O {[%clk 01:27:19]} {[%emt 00:01:14]} Nd7 {[%clk 01:32:24]} {[%emt 00:00:56]}
11. Nd3 {[%clk 01:27:40]} {[%emt 00:00:10]} Ndf6 {[%clk 01:32:23]} {[%emt
00:00:31]} 12. f3 {[%clk 01:25:14]} {[%emt 00:02:55]} Nxc3 {[%clk 01:29:53]}
{[%emt 00:03:01]} 13. bxc3 {[%clk 01:24:38]} {[%emt 00:01:05]} b6 {[%clk
01:27:42]} {[%emt 00:02:41]} 14. a4 {[%clk 01:24:32]} {[%emt 00:00:36]} Ba6
{[%clk 01:28:01]} {[%emt 00:00:10]} 15. Re1 {[%clk 01:24:42]} {[%emt 00:00:20]}
Qe7 {[%clk 01:25:09]} {[%emt 00:03:23]} 16. Bf1 {[%clk 01:19:42]} {[%emt
00:05:30]} Bc4 {[%clk 01:23:49]} {[%emt 00:01:50]} 17. Nb2 {[%clk 01:19:09]}
{[%emt 00:01:03]} Bxf1 {[%clk 01:24:01]} {[%emt 00:00:18]} 18. Kxf1 {[%clk
01:19:09]} {[%emt 00:00:30]} Qf7 {[%clk 01:23:43]} {[%emt 00:00:47]} 19. Nd3
{[%clk 01:18:59]} {[%emt 00:00:41]} Rae8 {[%clk 01:22:40]} {[%emt 00:01:34]} 20.
Ba3 {[%clk 01:19:02]} {[%emt 00:00:26]} Bxa3 {[%clk 01:23:06]} {[%emt
00:00:04]} 21. Rxa3 {[%clk 01:19:25]} {[%emt 00:00:06]} Re6 {[%clk 01:19:45]}
{[%emt 00:03:51]} 22. Ne5 {[%clk 01:16:54]} {[%emt 00:03:02]} Qe7 {[%clk
01:18:01]} {[%emt 00:02:12]} 23. Qb3 {[%clk 01:15:23]} {[%emt 00:02:02]} Nd7
{[%clk 01:17:51]} {[%emt 00:00:40]} 24. Nxd7 {[%clk 01:10:39]} {[%emt
00:05:15]} Qxd7 {[%clk 01:18:18]} {[%emt 00:00:03]} 25. Ra2 {[%clk 01:09:02]}
{[%emt 00:02:07]} Kh8 {[%clk 01:16:29]} {[%emt 00:02:19]} 26. c4 {[%clk
01:07:07]} {[%emt 00:02:25]} Rfe8 {[%clk 01:16:28]} {[%emt 00:00:32]} 27. f4
{[%clk 01:06:10]} {[%emt 00:01:26]} h6 {[%clk 01:15:05]} {[%emt 00:01:53]} 28.
cxd5 {[%clk 01:06:22]} {[%emt 00:00:18]} cxd5 {[%clk 01:15:11]} {[%emt
00:00:24]} 29. h4 {[%clk 01:04:36]} {[%emt 00:02:16]} Rc8 {[%clk 01:15:13]}
{[%emt 00:00:27]} 30. Qb5 {[%clk 00:59:24]} {[%emt 00:05:43]} Rec6 {[%clk
01:15:42]} {[%emt 00:00:01]} 31. Kf2 {[%clk 00:57:51]} {[%emt 00:02:03]} Qe6
{[%clk 01:14:45]} {[%emt 00:01:27]} 32. a5 {[%clk 00:53:12]} {[%emt 00:05:10]}
Qe4 {[%clk 01:12:11]} {[%emt 00:03:02]} 33. axb6 {[%clk 00:50:40]} {[%emt
00:03:02]} axb6 {[%clk 01:12:00]} {[%emt 00:00:42]} 34. Rae2 {[%clk 00:49:40]}
{[%emt 00:01:30]} Kh7 {[%clk 01:10:16]} {[%emt 00:02:14]} 35. Qb1 {[%clk
00:46:05]} {[%emt 00:04:04]} Rc2 {[%clk 01:08:17]} {[%emt 00:02:29]} 36. Qxb6
{[%clk 00:44:59]} {[%emt 00:01:37]} Rxe2+ {[%clk 01:08:22]} {[%emt 00:00:25]}
37. Rxe2 {[%clk 00:45:12]} {[%emt 00:00:17]} Rc1 {[%clk 01:06:38]} {[%emt
00:02:12]} 38. Re1 {[%clk 00:35:14]} {[%emt 00:10:29]} Qc2+ {[%clk 01:06:25]}
{[%emt 00:00:41]} 39. Kf1 {[%clk 00:34:20]} {[%emt 00:01:27]} Qd3+ {[%clk
01:06:37]} {[%emt 00:00:17]} 40. Kf2 {[%clk 00:34:21]} {[%emt 00:00:29]} Qd2+
{[%clk 01:06:04]} {[%emt 00:01:02]} 41. Re2 {[%clk 00:34:36]} {[%emt 00:00:17]}
Qd1 {[%clk 01:06:20]} {[%emt 00:00:14]} 42. e4 {[%clk 00:33:43]} {[%emt
00:01:23]} Qg1+ {[%clk 01:05:19]} {[%emt 00:00:50]} 0-1

[Event "The Schackveckan 2023: Göteborg open"]
[Site "Göteborgs schackcentrum, Vegagatan 20, Gothenburg, Sweden"]
[Date "2023.08.12"]
[Round "6.11"]
[White "Ottgard, Andreas"]
[Black "Mohammed, Safian Haj"]
[Result "1-0"]
[TimeControl "15 minutes + 5 seconds per move from move one (Round 1 - 4) / 90 minutes + 30 seconds per move from move one (Round 5 - 8)"]
[WhiteFideId "1730592"]
[BlackFideId "1729276"]
[WhiteElo "1874"]
[BlackElo "1862"]

1. c4 {[%clk 01:30:56]} {[%emt 00:00:04]} Nf6 {[%clk 01:30:26]} {[%emt
00:00:34]} 2. g3 {[%clk 01:31:00]} {[%emt 00:00:25]} d5 {[%clk 01:30:37]}
{[%emt 00:00:20]} 3. Bg2 {[%clk 01:31:17]} {[%emt 00:00:13]} c6 {[%clk
01:30:36]} {[%emt 00:00:31]} 4. Nf3 {[%clk 01:31:10]} {[%emt 00:00:37]} Nbd7
{[%clk 01:29:50]} {[%emt 00:01:16]} 5. O-O {[%clk 01:30:28]} {[%emt 00:01:12]}
e5 {[%clk 01:29:55]} {[%emt 00:00:26]} 6. d4 {[%clk 01:19:35]} {[%emt
00:11:22]} e4 {[%clk 01:29:54]} {[%emt 00:00:31]} 7. Nfd2 {[%clk 01:17:19]}
{[%emt 00:02:46]} Be7 {[%clk 01:22:25]} {[%emt 00:07:59]} 8. Nc3 {[%clk
01:10:48]} {[%emt 00:07:01]} O-O {[%clk 01:18:40]} {[%emt 00:04:15]} 9. f3
{[%clk 01:01:14]} {[%emt 00:10:04]} exf3 {[%clk 01:03:46]} {[%emt 00:15:24]} 10.
Bxf3 {[%clk 01:00:55]} {[%emt 00:00:48]} Nb6 {[%clk 01:03:42]} {[%emt
00:00:35]} 11. b3 {[%clk 00:50:53]} {[%emt 00:10:32]} Bh3 {[%clk 01:01:37]}
{[%emt 00:02:35]} 12. Re1 {[%clk 00:49:42]} {[%emt 00:01:41]} c5 {[%clk
00:55:53]} {[%emt 00:06:14]} 13. e3 {[%clk 00:39:01]} {[%emt 00:11:11]} Re8
{[%clk 00:54:55]} {[%emt 00:01:29]} 14. Bb2 {[%clk 00:37:01]} {[%emt 00:02:30]}
Be6 {[%clk 00:48:46]} {[%emt 00:06:38]} 15. cxd5 {[%clk 00:32:07]} {[%emt
00:05:24]} Nbxd5 {[%clk 00:48:39]} {[%emt 00:00:37]} 16. Nxd5 {[%clk 00:27:38]}
{[%emt 00:04:59]} Bxd5 {[%clk 00:48:19]} {[%emt 00:00:50]} 17. e4 {[%clk
00:26:53]} {[%emt 00:01:14]} Bc6 {[%clk 00:48:18]} {[%emt 00:00:31]} 18. d5
{[%clk 00:26:51]} {[%emt 00:00:33]} Bb5 {[%clk 00:48:06]} {[%emt 00:00:41]} 19.
Nc4 {[%clk 00:25:09]} {[%emt 00:02:13]} Ba6 {[%clk 00:45:04]} {[%emt 00:03:33]}
20. e5 {[%clk 00:22:35]} {[%emt 00:03:03]} Nd7 {[%clk 00:44:53]} {[%emt
00:00:42]} 21. d6 {[%clk 00:12:06]} {[%emt 00:10:59]} Bg5 {[%clk 00:44:59]}
{[%emt 00:00:22]} 22. Bd5 {[%clk 00:07:45]} {[%emt 00:04:52]} Nb6 {[%clk
00:42:43]} {[%emt 00:02:46]} 23. Nxb6 {[%clk 00:07:05]} {[%emt 00:01:09]} axb6
{[%clk 00:42:03]} {[%emt 00:01:11]} 24. Qf3 {[%clk 00:05:07]} {[%emt 00:02:28]}
Qd7 {[%clk 00:40:44]} {[%emt 00:01:49]} 25. Qh5 {[%clk 00:03:14]} {[%emt
00:02:23]} Bd2 {[%clk 00:36:20]} {[%emt 00:04:53]} 26. Re4 {[%clk 00:03:05]}
{[%emt 00:00:39]} Bd3 {[%clk 00:35:17]} {[%emt 00:01:34]} 27. Qf3 {[%clk
00:00:52]} {[%emt 00:02:42]} Bxe4 {[%clk 00:34:26]} {[%emt 00:01:22]} 28. Qxe4
{[%clk 00:01:21]} {[%emt 00:00:02]} Rab8 {[%clk 00:26:35]} {[%emt 00:08:21]} 29.
Rf1 {[%clk 00:01:46]} {[%emt 00:00:03]} Rf8 {[%clk 00:26:52]} {[%emt 00:00:14]}
30. a4 {[%clk 00:01:58]} {[%emt 00:00:18]} b5 {[%clk 00:25:57]} {[%emt
00:01:25]} 31. Qe2 {[%clk 00:01:24]} {[%emt 00:01:04]} Bh6 {[%clk 00:26:06]}
{[%emt 00:00:21]} 32. axb5 {[%clk 00:01:44]} {[%emt 00:00:10]} Rbe8 {[%clk
00:26:11]} {[%emt 00:00:25]} 33. Qc4 {[%clk 00:01:08]} {[%emt 00:01:06]} Be3+
{[%clk 00:26:22]} {[%emt 00:00:19]} 34. Kg2 {[%clk 00:01:28]} {[%emt 00:00:09]}
Ra8 {[%clk 00:24:56]} {[%emt 00:01:57]} 35. b4 {[%clk 00:00:42]} {[%emt
00:01:17]} Rac8 {[%clk 00:24:52]} {[%emt 00:00:34]} 36. Qe4 {[%clk 00:00:39]}
{[%emt 00:00:32]} Bh6 {[%clk 00:24:23]} {[%emt 00:01:00]} 37. Bxb7 {[%clk
00:01:01]} {[%emt 00:00:08]} Rb8 {[%clk 00:24:19]} {[%emt 00:00:33]} 38. Bc6
{[%clk 00:01:29]} {[%emt 00:00:02]} Qa7 {[%clk 00:24:36]} {[%emt 00:00:13]} 39.
bxc5 {[%clk 00:01:28]} {[%emt 00:00:32]} Qxc5 {[%clk 00:24:45]} {[%emt
00:00:21]} 40. Bd4 {[%clk 00:01:33]} {[%emt 00:00:24]} Qa3 {[%clk 00:24:49]}
{[%emt 00:00:26]} 41. b6 {[%clk 00:00:57]} {[%emt 00:01:06]} f5 {[%clk
00:24:04]} {[%emt 00:01:15]} 42. Qd5+ {[%clk 00:01:08]} {[%emt 00:00:20]} Kh8
{[%clk 00:24:32]} 43. e6 {[%clk 00:01:13]} {[%emt 00:00:25]} f4 {[%clk
00:24:52]} {[%emt 00:00:10]} 44. e7 {[%clk 00:01:05]} {[%emt 00:00:38]} f3+
{[%clk 00:24:52]} {[%emt 00:00:29]} 45. Rxf3 {[%clk 00:00:51]} {[%emt
00:00:44]} Rxf3 {[%clk 00:25:13]} {[%emt 00:00:10]} 46. Qxf3 {[%clk 00:01:16]}
{[%emt 00:00:05]} Qa2+ {[%clk 00:25:25]} {[%emt 00:00:18]} 1-0